Cogmind - Beta 16 @@@ ROGUE MODE // 2025.12.20 @ 23:49:11 Player: aloola Result: Destroyed by DAS Turret with DAS Cannon Performance ------------- Evolutions (1) 500 Regions Visited (5) 1000 Robots Destroyed (29) 145 Value Destroyed (673) 673 Prototype IDs (3) 60 Alien Tech Used (0) 0 Bonus (20) 20 TOTAL SCORE: 2398 Bonus ------- Follower Combat Kills 39 Friendly Fire -19 Cogmind --------- Core Integrity 0/400 Matter 169/300 Energy 265/265 System Corruption 4% Temperature Cool (0) Movement Treading (240) Ox1 Location -9/Exiles Parts ------- > --- POWER (1) -------- Improved Ion Engine > --- PROPULSION (3) --- Light Treads Light Treads > --- UTILITY (2) ------ High-capacity Storage Unit > --- WEAPON (3) ------- (None) > --- INVENTORY (20) --- Light Ion Engine Improved Ion Engine Light Nuclear Core Sensor Array Sensor Array Targeting Computer Improved Targeting Computer Improved Targeting Computer Improved Targeting Computer Improved EM Shotgun Improved EM Shotgun Improved EM Shotgun Shotgun Shotgun Improved Assault Rifle Mini Grenade Launcher Mini Grenade Launcher Peak State ------------ > --- POWER ------------ Improved Ion Engine > --- PROPULSION ------- Improved Treads Improved Treads Improved Treads > --- UTILITY ---------- High-capacity Storage Unit Improved Light Armor Plating > --- WEAPON ----------- Improved EM Shotgun Shotgun Shotgun > --- INVENTORY -------- Light Ion Engine Improved Ion Engine Light Nuclear Core Light Treads Sensor Array Sensor Array Improved Targeting Computer Improved EM Shotgun Improved EM Shotgun Improved EM Shotgun Shotgun Improved Assault Rifle Rocket Launcher Mini Grenade Launcher Mini Grenade Launcher [Rating: 22] Favorites ----------- Power Improved Ion Engine Engine Improved Ion Engine Power Core Light Nuclear Core Propulsion Improved Treads Treads Improved Treads Utility Improved Light Armor Plating Device Seismic Detector Storage Small Storage Unit Protection Improved Light Armor Plating Weapon Shotgun Energy Gun Improved EM Shotgun Ballistic Gun Shotgun Launcher Mini Grenade Launcher Build | -11 -10 -10 -9 -9 -9 ------- Run | Yrd Mat Min Mat Min Exi Slots Evolved 2 | . . . 2 . . Power . | . . . . . . Propulsion 1 | . . . 1 . . Utility . | . . . . . . Weapon 1 | . . . 1 . . Parts Attached 26 | 7 5 4 5 2 3 Power 3 | 1 1 . 1 . . Engine 2 | 1 . . 1 . . Core 1 | . 1 . . . . Reactor . | . . . . . . Propulsion 8 | 2 2 1 1 1 1 Treads 8 | 2 2 1 1 1 1 Leg . | . . . . . . Wheel . | . . . . . . Hover . | . . . . . . Flight . | . . . . . . Utility 6 | 2 . 1 1 1 1 Device 2 | 1 . . . 1 . Storage 2 | 1 . . 1 . . Processor . | . . . . . . Hackware . | . . . . . . Protection 2 | . . 1 . . 1 Artifact . | . . . . . . Weapon 9 | 2 2 2 2 . 1 Energy Gun 1 | . . . 1 . . Energy Cannon . | . . . . . . Ballistic Gun 6 | 2 2 1 1 . . Ballistic Cannon . | . . . . . . Launcher 2 | . . 1 . . 1 Special Weapon . | . . . . . . Impact Weapon . | . . . . . . Slashing Weapon . | . . . . . . Piercing Weapon . | . . . . . . Special Melee Weapon . | . . . . . . Unidentified Prototypes . | . . . . . . Parts Lost 10 | . . 2 1 1 6 Power . | . . . . . . Propulsion 4 | . . 1 . 1 2 Utility 2 | . . 1 . . 1 Weapon 4 | . . . 1 . 3 Highest Loss Streak 6 | . . 1 1 1 6 To Critical Strikes 1 | . . . . . 1 Average Backups 10 | 1 6 7 7 15 18 Power 1 | . 1 1 1 2 3 Propulsion 1 | . 1 1 . 1 . Utility 2 | . . 1 1 4 6 Weapon 4 | . 3 4 3 7 8 Tool/Special . | . . . . . . Unused Backups 17 | . 3 . 1 1 12 Power 2 | . . . . . 2 Propulsion 3 | . 2 . . 1 . Utility 5 | . . . . . 5 Weapon 7 | . 1 . 1 . 5 Tool/Special . | . . . . . . Average Slot Usage (%) 99 | . 100 98 99 99 94 Engine 7 | . 6 . 10 11 11 Core 5 | . 7 14 . . . Treads 30 | . 28 27 32 32 32 Device 4 | . 14 5 . . . Storage 12 | . 14 14 11 11 11 Protection 7 | . . 7 11 10 9 Energy Gun 4 | . . . 3 10 9 Ballistic Gun 25 | . 28 27 29 22 18 Peak Build Rating 22 | 7 14 16 21 22 21 Average Rating 16 | 5 11 14 19 21 19 On Entrance 13 | . 7 14 16 21 21 Avg Prop Armor Cover (%) . | . . . . . . Naked Turns . | . . . . . . Heaviest Build 60 | 14 17 19 59 59 60 Greatest Support 69 | 40 46 46 69 69 66 Greatest Overweight (x) 1 | . . . . 1 1 Average Overweight (x) . | . . . . . . Largest Inventory Capacity 20 | 8 8 8 20 20 20 Average Capacity 12 | 6 8 8 11 20 20 Most Carried 20 | 2 8 8 12 20 19 Average Carried 10 | 1 6 7 7 15 18 Final Capacity 20 | 8 8 8 20 20 20 Final Carried 19 | 2 8 7 12 19 17 Class Distribution -------------------- 50% | Tank 47% | Mutant Dominant Class ---------------- Mutant | -10/Materials Mutant | -10/Mines Tank | -9/Materials Tank | -9/Mines Tank | -9/Exiles Resources | -11 -10 -10 -9 -9 -9 ----------- Run | Yrd Mat Min Mat Min Exi Matter Collected 1000 | 282 96 150 266 206 . Remotely . | . . . . . . Salvage Created 872 | 113 181 79 322 154 23 Parts 62 | 8 12 4 23 15 . Haulers Intercepted . | . . . . . . Recyclers Shooed 1 | . . . 1 . . Parts Field Recycled . | . . . . . . Retrieved Matter . | . . . . . . Parts Self-Destructed . | . . . . . . Prevented . | . . . . . . Parts Restored . | . . . . . . Kills | -11 -10 -10 -9 -9 -9 ------- Run | Yrd Mat Min Mat Min Exi Combat Hostiles Destroyed 43 | . 2 18 8 8 7 Guns 20 | . 2 4 8 5 1 AOE 23 | . . 14 . 3 6 Classes Destroyed 10 | 2 3 3 1 1 . Tunneler 2 | 1 . 1 . . . Recycler 2 | 1 1 . . . . Operator 2 | . 1 . 1 . . Watcher 1 | . 1 . . . . Swarmer 9 | . . 3 . 6 . Grunt 9 | . 2 . 6 1 . Duelist 1 | . . . . 1 . Sentry 2 | . . . 2 . . Demolisher 1 | . . 1 . . . Assembled 21 | . . 14 . . 7 Best Kill Streak 14 | 1 3 14 5 4 7 Combat Bots Only 14 | . 2 14 5 4 7 Max Kills in Single Turn 6 | 1 1 3 1 3 6 Gunslinging . | . . . . . . Exploded 6 | . . 3 . 3 6 Melee . | . . . . . . Uniques/NPCs Destroyed . | . . . . . . Combat | -11 -10 -10 -9 -9 -9 -------- Run | Yrd Mat Min Mat Min Exi Hostile Shots Fired 113 | . 4 30 33 16 30 Missed 25 | . . 9 7 2 7 Hits 88 | . 4 21 26 14 23 Melee 8 | . . 2 . 5 1 Projectile 80 | . 4 19 26 9 22 AOE 5 | . . 5 . . . Critical Strikes 6 | . . . 1 1 4 Damage Taken 2220 | . 56 538 332 247 1047 Core 521 | . 10 53 32 35 391 Absorbed by Shields . | . . . . . . Core Remaining (%) 87 | 100 . 74 . . . Volleys Fired 57 | 3 7 18 14 12 3 Largest 3 | 2 2 2 3 3 2 Hottest 98 | 40 46 46 69 98 68 Shots Fired 128 | 6 14 29 42 30 7 Gun 117 | 6 14 21 42 29 5 Cannon . | . . . . . . Launcher 11 | . . 8 . 1 2 Special . | . . . . . . Kinetic 109 | 6 14 21 42 23 3 Thermal . | . . . . . . Explosive 11 | . . 8 . 1 2 Electromagnetic 8 | . . . . 6 2 Robot Hit Streak 13 | 3 5 3 13 5 5 Robot Miss Streak 6 | 1 3 4 6 3 1 Penetration Max . | . . . . . . Secondary Targets 2 | . . . 2 . . Max Gunslinging Chain 1 | . . . 1 . . Shots Hit Robots 79 | 4 11 14 28 17 5 Core Hits 87 | 3 9 29 20 12 14 Critical Kills . | . . . . . . Critical Parts Destroyed 1 | . 1 . . . . Critical Strikes 1 | . 1 . . . . Destroy 1 | . 1 . . . . Melee Attacks . | . . . . . . Impact . | . . . . . . Slashing . | . . . . . . Piercing . | . . . . . . Sneak Attacks . | . . . . . . Combat Hostiles . | . . . . . . Follow-up Attacks . | . . . . . . Damage Inflicted 2544 | 42 220 1067 401 381 433 Guns 1094 | 41 206 162 396 229 60 Cannons . | . . . . . . Explosions 1421 | . . 902 . 146 373 Melee . | . . . . . . Ramming 29 | 1 14 3 5 6 . Kinetic 1020 | 41 206 162 396 174 41 Thermal . | . . . . . . Explosive 1421 | . . 902 . 146 373 Electromagnetic 74 | . . . . 55 19 Impact . | . . . . . . Slashing . | . . . . . . Piercing . | . . . . . . Highest Corruption 5 | . . 5 4 4 4 Average Corruption 4 | . . 5 3 4 4 Corruption Purged . | . . . . . . Corruption Blocked . | . . . . . . Effects 37 | . . 14 2 16 5 Message Errors 7 | . . 4 1 2 . Matter Fused 16 | . . 3 1 8 4 Heat Flow Errors 3 | . . 2 . 1 . Energy Discharges 3 | . . 1 . 2 . Data Loss (minor) 4 | . . 2 . 2 . Data Loss (major) 1 | . . 1 . . . Misfires 2 | . . 1 . . 1 Alerts 1 | . . . . 1 . Overload Shots . | . . . . . . Overflow Damage 56 | . . 56 . . . Projectiles . | . . . . . . Explosions 56 | . . 56 . . . Melee . | . . . . . . Knockbacks 2 | . . . 1 1 . Impact 2 | . . . 1 1 . Kinetic . | . . . . . . Secondary . | . . . . . . Self-Inflicted Damage 93 | . . 93 . . . Shots 4 | . . 4 . . . Rammed 9 | 1 3 1 3 1 . Targets Rammed 10 | 1 4 1 3 1 . Kicked . | . . . . . . Crushed 1 | . 1 . . . . Highest Temperature 267 | . 4 267 78 178 12 Average Temperature 59 | . 4 120 29 43 5 Received Heat Transfer 209 | . 33 20 144 12 . Effects 2 | . . 2 . . . Interference 2 | . . 2 . . . Siege Activations . | . . . . . . Martial Activations . | . . . . . . Shielding Activations . | . . . . . . Robots Disrupted . | . . . . . . Combat Hostiles . | . . . . . . Robots Corrupted . | . . . . . . Combat Hostiles . | . . . . . . Parts Fried . | . . . . . . Impact Corruptions . | . . . . . . Robots Melted . | . . . . . . Combat Hostiles . | . . . . . . Parts Melted . | . . . . . . Heat Transferred . | . . . . . . Parts Sabotaged . | . . . . . . Parts Stolen . | . . . . . . Parts Stripped . | . . . . . . Power Chain Reactions 1 | . . . . 1 . Alert | -11 -10 -10 -9 -9 -9 ------- Run | Yrd Mat Min Mat Min Exi Maximum Alert Level . | . . . . . . Low Security (%) 100 | 100 100 100 100 100 . Level 1 . | . . . . . . Level 2 . | . . . . . . Level 3 . | . . . . . . Level 4 . | . . . . . . Level 5 . | . . . . . . High Security . | . . . . . . Max Security . | . . . . . . Peak Influence 126 | 5 50 51 126 98 . Initial 15 | . . . 13 15 . Average 23 | . 5 10 59 24 . Influence Increases 740 | 10 82 218 227 203 . Destroy 0b10 Robot/C 460 | . 40 100 160 160 . Destroy 0b10 Robot/NC 35 | 10 15 5 5 . . Destroy Leader 102 | . 12 20 50 20 . Allied During Kill 2 | . . 2 . . . Successful Hack 27 | . 15 . 12 . . Destroy Structure 69 | . . 61 . 8 . Lose Combat Pursuer 45 | . . 30 . 15 . Influence Decreases 740 | 10 82 182 222 194 50 Entered New Map 99 | . . . 23 26 50 Time Decay 568 | 10 82 129 189 158 . Lost Part 38 | . . 18 10 10 . Lost Ally 35 | . . 35 . . . Squads Dispatched 3 | . . . 3 . . Investigation 1 | . . . 1 . . Extermination . | . . . . . . Reinforcement 2 | . . . 2 . . Assault . | . . . . . . Garrison . | . . . . . . Intercept . | . . . . . . Searches Triggered . | . . . . . . Construction Impeded . | . . . . . . Haulers Reinforced . | . . . . . . Active Scanning Responses . | . . . . . . Cargo Convoy Interrupts . | . . . . . . Stealth | -11 -10 -10 -9 -9 -9 --------- Run | Yrd Mat Min Mat Min Exi Distress Signals 1 | . . . 1 . . Communications Jammed . | . . . . . . Distress Signals . | . . . . . . Times Spotted 58 | . 5 18 15 10 10 Peak Tracking Total 12 | . 3 12 5 4 11 Tactical Retreats 3 | . . 1 . 1 1 Traps | -11 -10 -10 -9 -9 -9 ------- Run | Yrd Mat Min Mat Min Exi Traps Triggered 2 | . . . 2 . . Indirectly . | . . . . . . Trap Hack Attempts . | . . . . . . Triggered . | . . . . . . Disarmed . | . . . . . . Reprogrammed . | . . . . . . Reused . | . . . . . . Traps Extracted . | . . . . . . Installed . | . . . . . . Triggered . | . . . . . . Machines | -11 -10 -10 -9 -9 -9 ---------- Run | Yrd Mat Min Mat Min Exi Machines Disabled 2 | . . . . . 2 Max in Single Turn 2 | . . . . . 2 Machines Repaired . | . . . . . . Machines Dismantled . | . . . . . . Machines Sabotaged . | . . . . . . Overloaded Fab Kills . | . . . . . . Hacking | -11 -10 -10 -9 -9 -9 --------- Run | Yrd Mat Min Mat Min Exi Machines Accessed 9 | . 4 . 4 1 . Terminals 6 | . 3 . 2 1 . Fabricators . | . . . . . . Repair Stations . | . . . . . . Recycling Units 1 | . 1 . . . . Scanalyzers 2 | . . . 2 . . Garrison Access . | . . . . . . Total Hacks 21 | . 8 . 11 2 . Successful 9 | . 5 . 4 . . Failed 12 | . 3 . 7 2 . Catastrophic 2 | . . . 1 1 . Database Lockouts . | . . . . . . Manual 8 | . 4 . 2 2 . Terminals 14 | . 6 . 6 2 . Fabricators . | . . . . . . Repair Stations . | . . . . . . Recycling Units 2 | . 2 . . . . Scanalyzers 5 | . . . 5 . . Garrison Access . | . . . . . . Terminal Hacks 3 | . 3 . . . . Prototype ID Bank 2 | . 2 . . . . Hauler Manifests 1 | . 1 . . . . Fabricator Hacks . | . . . . . . Repair Station Hacks . | . . . . . . Recycling Unit Hacks . | . . . . . . Scanalyzer 2 | . . . 2 . . Retrieve Study 2 | . . . 2 . . Garrison Access Hacks . | . . . . . . Unauthorized Hacks 4 | . 2 . 2 . . Terminals 3 | . 1 . 2 . . Botnet 2 | . 1 . 1 . . Operators 1 | . . . 1 . . Fabricators . | . . . . . . Repair Stations . | . . . . . . Recycling Units 1 | . 1 . . . . Recyclers 1 | . 1 . . . . Scanalyzers . | . . . . . . Garrison Access . | . . . . . . Data Cores Recovered 1 | . 1 . . . . Used . | . . . . . . Hacking Detections 8 | . 3 . 4 1 . Full Trace Events 1 | . . . 1 . . Feedback Events . | . . . . . . Feedback Blocked . | . . . . . . Robot Schematics Acquired . | . . . . . . Robots Built . | . . . . . . Authchips . | . . . . . . Time . | . . . . . . Total Robot Build Rating . | . . . . . . Part Schematics Acquired . | . . . . . . Parts Built . | . . . . . . Authchips . | . . . . . . Time . | . . . . . . Total Part Build Rating . | . . . . . . Part Studies Acquired 2 | . . . 2 . . Parts Repaired . | . . . . . . Time . | . . . . . . Parts Recycled . | . . . . . . Recycled Matter . | . . . . . . Retrieved Matter . | . . . . . . Retrieved Components . | . . . . . . Parts Scanalyzed . | . . . . . . Part Schematics Acquired . | . . . . . . Parts Damaged . | . . . . . . Bothacking | -11 -10 -10 -9 -9 -9 ------------ Run | Yrd Mat Min Mat Min Exi Used RIF Installer . | . . . . . . Robots Hacked . | . . . . . . Non-combat . | . . . . . . Combat . | . . . . . . Robot Hacks Applied . | . . . . . . Relay Couplers Released . | . . . . . . Fabnet Peak Effective % . | . . . . . . Robots Rewired . | . . . . . . Allies Hacked . | . . . . . . Hacks Repelled . | . . . . . . Allies | -11 -10 -10 -9 -9 -9 -------- Run | Yrd Mat Min Mat Min Exi Total Allies 3 | . . 3 . . . Largest Group 3 | . . 3 . . . Highest-Rated Group 40 | . . 40 . . . Highest-Rated Ally 16 | . . 16 . . . Total Orders . | . . . . . . Ally Attacks 25 | . . 25 . . . Total Damage 251 | . . 251 . . . Kills 3 | . . 3 . . . Allies Corrupted . | . . . . . . Allies Melted . | . . . . . . Intel | -11 -10 -10 -9 -9 -9 ------- Run | Yrd Mat Min Mat Min Exi Active Infowar (turns) 900 | 13 598 236 . 53 . Sensors 53 | . . . . 53 . Seismic 847 | 13 598 236 . . . Robot Analysis Total . | . . . . . . Derelict Logs Recovered 2 | . . 1 . 1 . Drone Launches . | . . . . . . Drone Recoveries . | . . . . . . Exploration | -11 -10 -10 -9 -9 -9 ------------- Run | Yrd Mat Min Mat Min Exi Turns Passed 2836 | 102 598 641 539 797 159 Spaces Moved 1572 | 52 339 358 283 453 87 Core 4 | 4 . . . . . Treads 1568 | 48 339 358 283 453 87 Legs . | . . . . . . Wheels . | . . . . . . Hover . | . . . . . . Flight . | . . . . . . Fastest Speed 50 | 50 160 160 160 160 160 Average Speed 160 | 151 160 160 160 160 166 Slowest Speed 240 | 160 160 160 160 200 240 Overloaded Moves . | . . . . . . Propulsion Burnouts . | . . . . . . Robots Hopped . | . . . . . . Potential Cave-ins . | . . . . . . Cave-ins Triggered . | . . . . . . Exploration Rate (%) 47 | 4 40 84 25 90 39 Regions Visited 5 Branch Regions 3 Pre-discovered Areas . | . . . . . . Known Exits Taken . | . . . . . . Unknown Exits Taken 5 | 1 1 1 1 1 . Scrap Searched 3 | . . 2 . 1 . Spaces Dug 4 | . . 4 . . . Terrain Destroyed 87 | . . 71 . 8 8 Melee . | . . . . . . Projectile . | . . . . . . AOE 87 | . . 71 . 8 8 Terrain Rammed . | . . . . . . Walls Destroyed . | . . . . . . Machines Disabled . | . . . . . . Actions | -11 -10 -10 -9 -9 -9 --------- Run | Yrd Mat Min Mat Min Exi Total 1769 | 66 382 395 336 495 95 Wait 59 | 2 12 12 19 14 . Move 1568 | 52 338 357 282 452 87 Hop . | . . . . . . Pick Up 29 | 2 9 . 9 9 . Fast Attach 10 | 7 . 1 1 1 . Attach 7 | . . 1 3 1 2 Detach 1 | . . . 1 . . Swap 19 | . 5 5 2 4 3 Drop 10 | . 7 . 2 1 . Fire 57 | 3 7 18 14 12 3 Melee . | . . . . . . Ram . | . . . . . . Kick . | . . . . . . Crush 9 | . 4 1 3 1 . Escape Stasis . | . . . . . . Rewire . | . . . . . . Trap . | . . . . . . Miscellaneous . | . . . . . . Route ------- -11/Scrapyard -10/Materials (discovered 2 exits: *Mat / [*Min]) -10/Mines -9/Materials -9/Mines (discovered 3 exits: [*Mat x2] / [*Exi]) -9/Exiles (discovered 1 exit: [*Min]) History --------- Turn | Location | Event 48 | -11/Scrapyard | Discovered new exit (range 15) 103 | -11/Scrapyard | Entered Materials 311 | -10/Materials | Build established: Mutant 359 | -10/Materials | Discovered new exit (range 14) 403 | -10/Materials | Discovered new exit (range 13) 701 | -10/Materials | Entered Mines 713 | -10/Mines | Assisted by bots powering up and referring to "LRC-V3" 890 | -10/Mines | Assembled infested the area 968 | -10/Mines | Destroyed 14 combat bots 1137 | -10/Mines | Learned Materials garrison access intel 1312 | -10/Mines | Discovered new exit (range 11) 1342 | -10/Mines | Entered Materials 1342 | -9/Materials | Evolved 2 slots: Propulsion x1, Weapon x1 1620 | -9/Materials | Build established: Tank 1867 | -9/Materials | Discovered new exit (range 6) 1881 | -9/Materials | Entered Mines 2221 | -9/Mines | Received a Rocket Launcher from a helpful Derelict 2262 | -9/Mines | Joined a pair of Derelicts in attacking an 0b10 outpost 2313 | -9/Mines | Discovered new exit (range 10) 2627 | -9/Mines | Discovered new exit (range 5) 2670 | -9/Mines | Deemed a non-threat by the Exiles lab entrance 2671 | -9/Mines | Discovered new exit (range 5) 2678 | -9/Mines | Entered Exiles 2699 | -9/Exiles | Discovered new exit (range 15) 2715 | -9/Exiles | Met 8R-AWN 2744 | -9/Exiles | Met EX-HEX 2783 | -9/Exiles | Attacked by the Exiles 2820 | -9/Exiles | Core integrity fell below 50% 2822 | -9/Exiles | Destroyed 7 combat bots 2828 | -9/Exiles | Core integrity fell below 20% 2837 | -9/Exiles | Destroyed by DAS Turret with DAS Cannon Last Messages --------------- 02793_ as-80436 destroyed. 02798_ System corrupted: Matter fused (-7). 02801_ as-66656 destroyed. 02809_ Imp. Light Armor Plating destroyed. 02811_ Imp. Treads+ destroyed. 02812_ Penetrated by HV Slug. 02812_ HV Slug penetrates Machine. 02815_ Imp. EM Shotgun destroyed. 02816_ HV Slug penetrates Machine. 02817_ Lgt. Armor Plating blasted off. 02819_ Penetrated by HV Slug. 02819_ Critical hit (Destroy). 02819_ Shotgun destroyed. 02819_ Penetrated by HV Slug. 02823_ HV Slug penetrates Machine. 02823_ Penetrated by HV Slug. 02828_ Rocket Launcher destroyed. 02830_ System corrupted: Matter fused (-5). 02831_ Imp. Treads+ destroyed. 02835_ HV Slug penetrates Machine. Map ----- +----------------------------------------------------+ | ?????????????????????????????????????????????????? | | ?????????????????????????????????????????????????? | | ?????????????????????????????????????????????????? | | ?????????????????????????????????????????????????? | | ?????????????????????????????????????????????????? | | ?????????????????????????????????????????????????? | | ?????????????????????????????????????????????????? | | ?????????????????????????????????????????????????? | | ?????????????????????????????????????????????????? | | ?????????????????????????????????????????????????? | | ???????????????????????????????????????????? ?? | | ?????????????????????????????????????????? ?? | | ?????????????????????????????????????????" ? | | ???????????????????????????##????????????" ? | | ??????????????????????????? """?????????" ? | | ???????????????????????????" """#????????# | | ???????????????????????????" ?????????# | | ??????????????????????????"" ?????????#" | | ??????????????????????????"" "#????????#" ? | | ?????????????????????????? ""?????????#" ?? | | ???????????????????????????" "?????????##" #?? | | ???????????????????????????# #????????##"" #?? | | ??????????? ###??????### ###?######"" #?? | | ??????????" """#####X# #"###" "" "" ##? | | ??????????" """"" " "" ## | | ???????????# @ %% %"" " " # | | ????????????# " % | | ?????????????## % ! %% | | ??????????????### | | ????????????????## % % % | | ?????????????????## | | ??????????????????##" | | ???????????????????#"""z | | ???????????????????#" ###### | | ???????????????????"" ""##????# | | ???????????????????""" """##??????### | | ???????????????????"" """##??????????# | | ????????????????????" ""#????????????#" | | ???????????????????" #??????????????" | | ???????????????????"" ??????????????? | | ????????????????????? ?????????????? | | ???????????????????????? ????????????? | | ?????????????????????????? ?????????????? | | ????????????????????????????? ??????????????? | | ???????????????????????????????????????????????"" | | ?????????????????????????????????????????????????" | | ?????????????????????????????????????????????????? | | ?????????????????????????????????????????????????? | | ?????????????????????????????????????????????????? | | ?????????????????????????????????????????????????? | +----------------------------------------------------+ Best States ------------- Heat Dissipation 28 Energy Generation 14 Energy Capacity 265 Matter Stores 300 Matter Capacity 300 Sight Range 16 Robot Scan Range 14 Terrain Scan Density 10 Armor Coverage 150 Evasion (%) 40 Recoil Reduction 3 Item Schematics ----------------- None Robot Schematics ------------------ None Fabricated ------------ Nothing Repaired ---------- Nothing Studied --------- Imp. Treads | -9/Materials | Hacked Mni. Grenade Launcher | -9/Materials | Hacked Alien Tech Used ----------------- None Achievements -------------- None Challenges ------------ None Game ------ Seed ServoIonGravjet Manual? 0 Play Time 00:20:55 Cumulative 152.0 hours Start 2025.12.20 @ 23:24:28 End 2025.12.20 @ 23:49:11 Sessions 1 Manual Loads 0 Difficulty Rogue Special Mode None Game No. 67 Rogue 67 Adventurer 0 Explorer 0 Win Type - Total 10 Types 10/0/0/0/0/0/0/0/0/0 Lore% 69 Gallery% 63 Achievement% 33 Wizard Run 0 Options --------- Layout 0 ASCII 0 Keyboard 1 Movement Numpad Keybinds 0 Fullscreen 1 Font 18/Cog Map View 76x50 Zoom Use 0% Tactical HUD 1 Map Filters NONE Filters NONE Steam 1 RUN: bb1e33d6-bc14-4e04-9166-0466479a9549